Cogmind - Beta 12 @@@ ROGUE MODE // 2023.04.23 @ 15:05:39 Player: alice_fexa Result: Destroyed by D-53 Grenadier with Mini Grenade Launcher Performance ------------- Evolutions (0) 0 Regions Visited (2) 400 Robots Destroyed (30) 150 Value Destroyed (498) 498 Prototype IDs (0) 0 Alien Tech Used (0) 0 Bonus (60) 60 TOTAL SCORE: 1108 Bonus ------- Follower Combat Kills 60 Cogmind --------- Core Integrity 0/250 Matter 280/300 Energy 218/250 System Corruption 0% Temperature Warm (108) Movement Treading (320) Ox2 Location -10/Mines Parts ------- > --- POWER (1) -------- Ion Engine > --- PROPULSION (2) --- Light Treads Compact Wheel > --- UTILITY (2) ------ Heat Sink High-capacity Storage Unit > --- WEAPON (2) ------- Beam Rifle Field Laser > --- INVENTORY (20) --- Ion Engine Light Ion Engine Light Treads Light Treads Wheel Flight Unit Flight Unit Flight Unit Flight Unit Cesium-ion Thruster Heat Sink Weight Redist. System Improved Signal Interpreter Improved Targeting Computer EM Pulse Gun Beam Rifle Beam Rifle Minigun Grenade Launcher Grenade Launcher Peak State ------------ > --- POWER ------------ Ion Engine > --- PROPULSION ------- Light Treads Compact Wheel > --- UTILITY ---------- Heat Sink High-capacity Storage Unit > --- WEAPON ----------- Beam Rifle Field Laser > --- INVENTORY -------- Ion Engine Light Ion Engine Light Treads Light Treads Wheel Flight Unit Flight Unit Flight Unit Flight Unit Cesium-ion Thruster Heat Sink Weight Redist. System Improved Signal Interpreter Improved Targeting Computer EM Pulse Gun Beam Rifle Beam Rifle Minigun Grenade Launcher Grenade Launcher [Rating: 13] Favorites ----------- Power Ion Engine Engine Ion Engine Propulsion Compact Wheel Treads Light Treads Wheel Compact Wheel Utility Heat Sink Device Heat Sink Storage High-capacity Storage Unit Weapon Medium Laser Energy Gun Medium Laser Ballistic Gun Light Assault Rifle Launcher Grenade Launcher Build | -11 -10 -10 ------- Run | Jun Mat Min Slots Evolved . | . . . Power . | . . . Propulsion . | . . . Utility . | . . . Weapon . | . . . Parts Attached 29 | 6 12 11 Power 5 | 1 4 . Engine 5 | 1 4 . Core . | . . . Reactor . | . . . Propulsion 6 | 2 . 4 Treads 2 | 1 . 1 Leg . | . . . Wheel 4 | 1 . 3 Hover . | . . . Flight . | . . . Utility 5 | 1 3 1 Device 2 | . 1 1 Storage 3 | 1 2 . Processor . | . . . Hackware . | . . . Protection . | . . . Artifact . | . . . Weapon 13 | 2 5 6 Energy Gun 9 | 2 4 3 Energy Cannon . | . . . Ballistic Gun 1 | . 1 . Ballistic Cannon . | . . . Launcher 3 | . . 3 Special Weapon . | . . . Impact Weapon . | . . . Slashing Weapon . | . . . Piercing Weapon . | . . . Special Melee Weapon . | . . . Unidentified Prototypes . | . . . Parts Lost 1 | . 1 . Power 1 | . 1 . Propulsion . | . . . Utility . | . . . Weapon . | . . . Highest Loss Streak 1 | . 1 . To Critical Strikes . | . . . Average Slot Usage (%) 98 | . 97 100 Engine 13 | . 13 14 Treads 14 | . 14 14 Wheel 14 | . 14 14 Device 12 | . 11 14 Storage 14 | . 14 14 Energy Gun 26 | . 27 24 Launcher 1 | . . 3 Naked Turns . | . . . Heaviest Build 52 | 11 52 52 Greatest Support 16 | 16 16 16 Greatest Overweight (x) 3 | . 3 3 Average Overweight (x) 2 | . 1 3 Largest Inventory Capacity 20 | 8 20 20 Average Capacity 17 | 7 17 20 Most Carried 20 | 6 20 20 Average Carried 17 | 3 16 19 Final Capacity 20 | 8 20 20 Final Carried 20 | 6 20 20 Class Distribution -------------------- 82% | Mutant 17% | Scavenger-Mutant Dominant Class ---------------- Mutant | -10/Materials Mutant | -10/Mines Resources | -11 -10 -10 ----------- Run | Jun Mat Min Matter Collected 513 | 260 123 130 Remotely . | . . . Salvage Created 833 | 72 546 215 Parts 62 | 1 44 17 Haulers Intercepted 2 | . 2 . Recyclers Shooed 2 | . 1 1 Parts Field Recycled . | . . . Retrieved Matter . | . . . Parts Self-Destructed . | . . . Prevented . | . . . Kills | -11 -10 -10 ------- Run | Jun Mat Min Combat Hostiles Destroyed 20 | . 11 9 Guns 12 | . 9 3 AOE 7 | . 1 6 Classes Destroyed 7 | 1 5 1 Tunneler 1 | . . 1 Hauler 2 | . 2 . Recycler 3 | 1 . 2 Operator 1 | . 1 . Watcher 3 | . 3 . Swarmer 12 | . 3 9 Grunt 8 | . 8 . Best Kill Streak 4 | 1 4 3 Combat Bots Only 4 | . 4 3 Max Kills in Single Turn 3 | 1 1 3 Gunslinging 1 | . . 1 Exploded 3 | . 1 3 Melee . | . . . Uniques/NPCs Destroyed . | . . . Combat | -11 -10 -10 -------- Run | Jun Mat Min Damage Taken 784 | . 337 447 Core 257 | . 95 162 Absorbed by Shields . | . . . Core Remaining (%) 100 | 100 . . Volleys Fired 75 | 6 49 20 Largest 2 | 2 2 2 Hottest 119 | 80 100 119 Shots Fired 146 | 12 98 36 Gun 142 | 12 98 32 Cannon . | . . . Launcher 4 | . . 4 Special . | . . . Kinetic 3 | . 3 . Thermal 119 | 6 81 32 Explosive 4 | . . 4 Electromagnetic 20 | 6 14 . Robot Hit Streak 7 | 3 6 7 Robot Miss Streak 3 | 2 3 3 Penetration Max . | . . . Secondary Targets 3 | . 2 1 Max Gunslinging Chain 1 | . 1 1 Shots Hit Robots 84 | 7 59 18 Core Hits 45 | 2 29 14 Critical Kills . | . . . Critical Parts Destroyed . | . . . Critical Strikes 6 | . 5 1 Burn 6 | . 5 1 Melee Attacks . | . . . Impact . | . . . Slashing . | . . . Piercing . | . . . Sneak Attacks . | . . . Combat Hostiles . | . . . Follow-up Attacks . | . . . Damage Inflicted 1516 | 122 802 592 Guns 1103 | 91 747 265 Cannons . | . . . Explosions 413 | 31 55 327 Melee . | . . . Ramming . | . . . Kinetic 20 | . 20 . Thermal 1012 | 52 695 265 Explosive 327 | . . 327 Electromagnetic 157 | 70 87 . Impact . | . . . Slashing . | . . . Piercing . | . . . Highest Corruption . | . . . Average Corruption . | . . . Corruption Purged . | . . . Corruption Blocked . | . . . Overload Shots . | . . . Overflow Damage 20 | 1 . 19 Projectiles . | . . . Explosions 20 | 1 . 19 Melee . | . . . Knockbacks . | . . . Impact . | . . . Kinetic . | . . . Secondary . | . . . Self-Inflicted Damage 18 | . . 18 Shots 2 | . . 2 Rammed . | . . . Targets Rammed . | . . . Kicked . | . . . Crushed . | . . . Highest Temperature 158 | 108 158 108 Average Temperature 41 | 51 40 36 Received Heat Transfer 144 | . 144 . Siege Activations . | . . . Robots Corrupted . | . . . Combat Hostiles . | . . . Parts Fried . | . . . Impact Corruptions . | . . . Robots Melted 1 | . 1 . Combat Hostiles 1 | . 1 . Parts Melted 5 | . 5 . Heat Transferred 3124 | 100 2284 740 Parts Sabotaged . | . . . Parts Stolen . | . . . Parts Stripped . | . . . Power Chain Reactions 2 | 1 1 . Missiles Intercepted . | . . . Alert | -11 -10 -10 ------- Run | Jun Mat Min Peak Influence 258 | 5 213 258 Initial 3 | . 3 . Average 100 | 1 69 156 Maximum Alert Level 1 | . 1 1 Low Security (%) 80 | 100 90 65 Level 1 19 | . 9 34 Level 2 . | . . . Level 3 . | . . . Level 4 . | . . . Level 5 . | . . . High Security . | . . . Max Security . | . . . Squads Dispatched 5 | . 4 1 Investigation 4 | . 3 1 Extermination . | . . . Reinforcement 1 | . 1 . Assault . | . . . Garrison . | . . . Intercept . | . . . Searches Triggered . | . . . Construction Impeded . | . . . Haulers Reinforced . | . . . Active Scanning Responses . | . . . Cargo Convoy Interrupts . | . . . Stealth | -11 -10 -10 --------- Run | Jun Mat Min Distress Signals . | . . . Communications Jammed . | . . . Distress Signals . | . . . Times Spotted 34 | . 18 16 Peak Tracking Total 6 | . 6 4 Tactical Retreats 1 | . 1 . Traps | -11 -10 -10 ------- Run | Jun Mat Min Traps Triggered 2 | . 2 . Indirectly . | . . . Trap Hack Attempts . | . . . Triggered . | . . . Disarmed . | . . . Reprogrammed . | . . . Reused . | . . . Traps Extracted . | . . . Installed . | . . . Triggered . | . . . Machines | -11 -10 -10 ---------- Run | Jun Mat Min Machines Disabled . | . . . Max in Single Turn . | . . . Machines Repaired . | . . . Machines Sabotaged . | . . . Overloaded Fab Kills . | . . . Hacking | -11 -10 -10 --------- Run | Jun Mat Min Machines Accessed 3 | . 2 1 Terminals 2 | . 2 . Fabricators . | . . . Repair Stations . | . . . Recycling Units . | . . . Scanalyzers . | . . . Garrison Access . | . . . Total Hacks 10 | . 9 1 Successful 7 | . 6 1 Failed 3 | . 3 . Catastrophic . | . . . Database Lockouts . | . . . Manual 7 | . 7 . Terminals 9 | . 9 . Fabricators . | . . . Repair Stations . | . . . Recycling Units . | . . . Scanalyzers . | . . . Garrison Access . | . . . Terminal Hacks 6 | . 5 1 Robot Analysis 2 | . 2 . Open Door 1 | . . 1 Unreport Threat 1 | . 1 . Locate Traps 2 | . 2 . Fabricator Hacks . | . . . Repair Station Hacks . | . . . Recycling Unit Hacks . | . . . Scanalyzer . | . . . Garrison Access Hacks . | . . . Unauthorized Hacks 1 | . 1 . Terminals 1 | . 1 . Botnet 1 | . 1 . Fabricators . | . . . Repair Stations . | . . . Recycling Units . | . . . Scanalyzers . | . . . Garrison Access . | . . . Data Cores Recovered . | . . . Used . | . . . Hacking Detections 2 | . 2 . Full Trace Events . | . . . Feedback Events . | . . . Feedback Blocked . | . . . Robot Schematics Acquired . | . . . Robots Built . | . . . Authchips . | . . . Time . | . . . Total Robot Build Rating . | . . . Part Schematics Acquired . | . . . Parts Built . | . . . Authchips . | . . . Time . | . . . Total Part Build Rating . | . . . Parts Repaired . | . . . Time . | . . . Parts Recycled . | . . . Recycled Matter . | . . . Retrieved Matter . | . . . Retrieved Components . | . . . Parts Scanalyzed . | . . . Part Schematics Acquired . | . . . Parts Damaged . | . . . Bothacking | -11 -10 -10 ------------ Run | Jun Mat Min Used RIF Installer . | . . . Robots Hacked . | . . . Non-combat . | . . . Combat . | . . . Robot Hacks Applied . | . . . Relay Couplers Released . | . . . Fabnet Peak Effective % . | . . . Robots Rewired . | . . . Allies Hacked . | . . . Hacks Repelled . | . . . Allies | -11 -10 -10 -------- Run | Jun Mat Min Total Allies 5 | . . 5 Largest Group 5 | . . 5 Highest-Rated Group 91 | . . 91 Highest-Rated Ally 31 | . . 31 Total Orders . | . . . Ally Attacks 25 | . . 25 Total Damage 415 | . . 415 Kills 6 | . . 6 Allies Corrupted . | . . . Allies Melted . | . . . Intel | -11 -10 -10 ------- Run | Jun Mat Min Robot Analysis Total 2 | . 2 . Derelict Logs Recovered 1 | . . 1 Drone Launches . | . . . Drone Recoveries . | . . . Exploration | -11 -10 -10 ------------- Run | Jun Mat Min Turns Passed 1648 | 67 945 636 Spaces Moved 909 | 33 509 367 Core 1 | 1 . . Treads . | . . . Legs . | . . . Wheels 908 | 32 509 367 Hover . | . . . Flight . | . . . Fastest Speed 50 | 50 100 145 Average Speed 134 | 98 128 145 Slowest Speed 145 | 100 145 145 Overloaded Moves . | . . . Propulsion Burnouts . | . . . Robots Hopped . | . . . Cave-ins Triggered . | . . . Exploration Rate (%) 57 | 4 83 84 Regions Visited 2 Branch Regions 1 Pre-discovered Areas 1 | . . 1 Known Exits Taken . | . . . Unknown Exits Taken 2 | 1 1 . Scrap Searched 1 | . . 1 Spaces Dug 5 | . . 5 Terrain Destroyed 33 | 4 6 23 Melee . | . . . Projectile . | . . . AOE 33 | 4 6 23 Terrain Rammed . | . . . Walls Destroyed . | . . . Machines Disabled . | . . . Actions | -11 -10 -10 --------- Run | Jun Mat Min Total 1205 | 53 712 440 Wait 128 | 2 99 27 Move 907 | 32 508 367 Hop . | . . . Pick Up 40 | 7 26 7 Fast Attach 8 | 5 3 . Attach 2 | 1 1 . Detach . | . . . Swap 19 | . 8 11 Drop 26 | . 18 8 Fire 75 | 6 49 20 Melee . | . . . Ram . | . . . Kick . | . . . Crush . | . . . Escape Stasis . | . . . Rewire . | . . . Trap . | . . . Miscellaneous . | . . . Route ------- -11/Junkyard -10/Materials (discovered 2 exits: [*Mat] / *Min) -10/Mines (discovered 2 exits: [*Mat x2]) History --------- Turn | Location | Event 17 | -11/Junkyard | Discovered new exit (range 16) 68 | -11/Junkyard | Entered Materials 314 | -10/Materials | Build established: Mutant 405 | -10/Materials | Discovered new exit (range 8) 688 | -10/Materials | Discovered new exit (range 3) 1013 | -10/Materials | Entered Mines 1279 | -10/Mines | Learned location of Storage (-7) 1285 | -10/Mines | Discovered new exit (range 15) 1348 | -10/Mines | Found a hidden stash of uninstalled traps 1436 | -10/Mines | Met a Derelict shopkeep closing up shop 1498 | -10/Mines | Discovered new exit (range 8) 1575 | -10/Mines | Assisted by bots powering up and referring to "LRC-V3" 1595 | -10/Mines | Assembled infested the area 1641 | -10/Mines | Core integrity fell below 50% 1646 | -10/Mines | Core integrity fell below 20% 1649 | -10/Mines | Destroyed by D-53 Grenadier with Mini Grenade Launcher Last Messages --------------- 01456_ Acquired Field Laser. 01461_ Dropped Heat Sink. 01462_ Acquired Imp. Signal Interpreter. 01466_ Dropped Lgt. Assault Rifle. 01466_ Acquired Minigun. 01498_ EXIT=FOUND 01507_ G-34 Mercenary destroyed. 01512_ Acquired 20 matter. 01522_ G-47 Trooper destroyed. 01548_ T-07 Excavator is excavating. 01575_ Trooper 1a: "Hello LRC-V3. What is your command?" 01575_ Mercenary 1a: "Hello LRC-V3. What is your command?" 01575_ Trooper 1b: "Hello LRC-V3. What is your command?" 01595_ ALERT: Infestation in the mines, dispatching Demolisher response squad. 01628_ as-24707 destroyed. 01632_ The unstable cave ceiling collapses. 01640_ Destroyed Shock Absorption System. 01643_ The unstable cave ceiling collapses. 01649_ D-53 Grenadier suffers critical hit (Burn). Map ----- +----------------------------------------------------+ | | | | | | | | | | | ???????????????????????????????????????????????? | | ???????????????????????????????????????????????? | | ???????????????????????????????????????????????? | | ?????????????????????????######????????????????? | | ????????????????????????## ##???????????????? | | ????????????????????????# #???????????????? | | ??????????????????##????? #???????????????? | | ????????????????### ###??# ????????????????? | | ??????????????? g g ### #?????????####??? | | ??????????????## # ####???### ##?? | | ??????????????# # # ##?## #?? | | ??????????????# % #?# #?? | | ??????????????# ### #?# | | ??????????????? # d #?# | | ???????????????? d # ### | | ????????????????? ## | | ??????????????????# # # ##### ## | | ??????????????????## ### ##??### ## | | ??????????????????# ### ##???# ## | | ??????????????????# ##?####????# # | | ??????????????????# @ #?????????# | | ??????????????????# #?????????##### | | ?????????????????# #?????????????# | | ?????????????????## ##?????????????# ## | | ??????????????????# ##?###??????##### ### | | ??????????????????## # #?## ##?????# #?# | | ???????????????????########?# #?????# #?? | | ????????????????????????????# #?????# #####?? | | ????????????????????????????# #?????# ###???? | | ???????????????????????????## ??????# ##??? | | ??????????????????????????## #????### #### | | ??????????????????????????# ##??## | | ??????????????????????????# #### #### | | ??????????????????????????## ##??? | | ??????????????????????????## ##???? | | ??????????????????????##### ##????# | | ?????????????????????## ##????## | | ?????????????????????# ######## | | ?????????????????????# [==#### #### | | ????????????????????## & *%##?######## | | ????????????????????# & & ![#??#" ### | | ????????????????????# & ## #??#"#[!#X # | | ????????????????????## ### ####"[ ! ## | | ?????########????????## ### ##"!# ###? | | ????## ##????????# # #"!=!# ##??? | +----------------------------------------------------+ Best States ------------- Heat Dissipation 35 Energy Generation 10 Energy Capacity 250 Matter Stores 300 Matter Capacity 300 Sight Range 16 Terrain Scan Density 10 Evasion (%) 40 Recoil Reduction 1 Item Schematics ----------------- None Robot Schematics ------------------ None Fabricated ------------ Nothing Alien Tech Used ----------------- None Achievements -------------- None Challenges ------------ None Game ------ Seed ZioniteMinesnifferStreamer Manual? 0 Play Time 00:10:26 Cumulative 1186.6 hours Start 2023.04.23 @ 14:56:05 End 2023.04.23 @ 15:05:39 Sessions 1 Manual Loads 0 Difficulty Rogue Special Mode None Game No. 866 Rogue 826 Adventurer 40 Explorer 0 Win Type - Total 137 Types 66/5/42/2/1/4/14/2/1 Lore% 94 Gallery% 96 Achievement% 81 Wizard Run 0 Options --------- ASCII 0 Keyboard 0 Movement Numpad Keybinds 0 Fullscreen 0 Font 20/Terminus Map View 76x50 Tactical HUD 1 Map Filters NONE Filters NONE Steam 1 RUN: 29f38540-cee0-44f3-9cfc-08ee2b7dc4d5